Cogmind - Beta 16.1 @@@ ROGUE MODE // 2026.03.07 @ 22:07:39 Player: Zable Result: Self-destructed Performance ------------- Evolutions (1) 500 Regions Visited (6) 1200 Robots Destroyed (22) 110 Value Destroyed (435) 435 Prototype IDs (26) 520 Alien Tech Used (0) 0 Bonus (290) 290 TOTAL SCORE: 3055 Bonus ------- Follower Combat Kills 7 Aligned with FarCom 300 Friendly Fire -17 Cogmind --------- Core Integrity 48/400 Matter 235/300 Energy 265/265 System Corruption 0% Temperature Cool (17) Movement Treading (320) Ox2 Location -8/Mines Parts ------- > --- POWER (1) -------- Reinforced Ion Engine > --- PROPULSION (2) --- Light Treads > --- UTILITY (4) ------ Small Storage Unit Large Storage Unit Visual Processing Unit Cloak of Protection > --- WEAPON (2) ------- (None) > --- INVENTORY (15) --- Light Ion Engine Faulty Cooled Ion Engine Compact Wheel Compact Wheel Large Battery (200) High-capacity Matter Pod (65) Particle Cannon Peak State ------------ > --- POWER ------------ Reinforced Ion Engine > --- PROPULSION ------- Light Treads Improved Treads > --- UTILITY ---------- Small Storage Unit Large Storage Unit Visual Processing Unit Cloak of Protection > --- WEAPON ----------- Rocket Launcher > --- INVENTORY -------- Light Ion Engine Cooled Ion Engine Compact Wheel Compact Wheel Large Battery High-capacity Matter Pod Particle Cannon [Rating: 20] Favorites ----------- Power Light Ion Engine Engine Light Ion Engine Propulsion Aluminum Leg Treads Improved Treads Leg Aluminum Leg Wheel Compact Wheel Utility Small Storage Unit Device Seismic Detector Storage Small Storage Unit Processor Visual Processing Unit Weapon Heavy Assault Rifle Energy Gun Medium Laser Energy Cannon Particle Cannon Ballistic Gun Heavy Assault Rifle Ballistic Cannon Light Cannon Launcher Rocket Launcher Build | -11 -10 -10 -9 -9 -9 -8 ------- Run | Yrd Mat Min Mat Min Exi Min Slots Evolved 2 | . . . 2 . . . Power . | . . . . . . . Propulsion . | . . . . . . . Utility 2 | . . . 2 . . . Weapon . | . . . . . . . Parts Attached 19 | 2 1 1 9 4 2 . Power 3 | . . . 2 1 . . Engine 3 | . . . 2 1 . . Core . | . . . . . . . Reactor . | . . . . . . . Propulsion 5 | . . . 2 2 1 . Treads 4 | . . . 2 1 1 . Leg . | . . . . . . . Wheel 1 | . . . . 1 . . Hover . | . . . . . . . Flight . | . . . . . . . Utility 4 | 1 . . 2 . 1 . Device 2 | 1 . . . . 1 . Storage 1 | . . . 1 . . . Processor 1 | . . . 1 . . . Hackware . | . . . . . . . Protection . | . . . . . . . Artifact . | . . . . . . . Weapon 7 | 1 1 1 3 1 . . Energy Gun 1 | 1 . . . . . . Energy Cannon 2 | . . . 1 1 . . Ballistic Gun 2 | . . . 2 . . . Ballistic Cannon 1 | . 1 . . . . . Launcher 1 | . . 1 . . . . Special Weapon . | . . . . . . . Impact Weapon . | . . . . . . . Slashing Weapon . | . . . . . . . Piercing Weapon . | . . . . . . . Special Melee Weapon . | . . . . . . . Unidentified Prototypes 1 | . . . 1 . . . Parts Lost 9 | . . . 1 6 . 2 Power 1 | . . . 1 . . . Propulsion 3 | . . . . 2 . 1 Utility 1 | . . . . 1 . . Weapon 4 | . . . . 3 . 1 Highest Loss Streak 6 | . . . 1 6 . 2 To Critical Strikes . | . . . . . . . Average Backups 6 | 6 6 6 6 8 6 7 Power 1 | 1 1 1 . 1 2 2 Propulsion 3 | 4 4 4 4 3 3 2 Utility . | . . . . . . 2 Weapon 1 | 1 1 1 2 2 1 1 Tool/Special . | . . . . . . . Unused Backups 10 | 5 . . 2 . . 3 Power 2 | 1 . . 1 . . . Propulsion 3 | 2 . . . . . 1 Utility 3 | 1 . . . . . 2 Weapon 2 | 1 . . 1 . . . Tool/Special . | . . . . . . . Average Slot Usage (%) 90 | . 100 100 81 96 72 73 Engine 11 | . 14 14 10 11 11 11 Treads 6 | . . . 3 20 . 11 Leg 14 | . 28 28 18 . . . Wheel 1 | . . . . 1 11 . Device 11 | . 14 14 11 9 6 11 Storage 17 | . 14 14 15 22 22 22 Processor 4 | . . . . 11 11 11 Energy Cannon 3 | . . . 8 4 . . Ballistic Gun 11 | . 14 14 12 12 . . Ballistic Cannon 4 | . 11 13 1 . . . Launcher 2 | . . . . 3 11 7 Peak Build Rating 20 | 7 7 8 14 16 20 18 Average Rating 10 | 6 7 7 9 15 14 16 On Entrance 10 | 6 7 7 7 14 10 20 Avg Prop Armor Cover (%) 10 | . . . 8 10 . . Naked Turns . | . . . . . . . Heaviest Build 47 | 13 14 15 36 43 47 43 Greatest Support 46 | 20 20 20 46 46 43 20 Greatest Overweight (x) 2 | . . . 1 2 2 2 Average Overweight (x) . | . . . . . 1 2 Largest Inventory Capacity 15 | 8 8 8 15 15 15 15 Average Capacity 11 | 8 8 8 10 15 15 15 Most Carried 9 | 6 6 7 7 9 9 7 Average Carried 6 | 6 6 6 6 8 6 7 Final Capacity 15 | 8 8 8 15 15 15 15 Final Carried 7 | 6 6 7 7 6 7 7 Class Distribution -------------------- 100% | Mutant Dominant Class ---------------- Mutant | -10/Materials Mutant | -10/Mines Mutant | -9/Materials Mutant | -9/Mines Mutant | -9/Exiles Mutant | -8/Mines Resources | -11 -10 -10 -9 -9 -9 -8 ----------- Run | Yrd Mat Min Mat Min Exi Min Matter Collected 743 | 229 . 46 161 172 135 . Remotely . | . . . . . . . Salvage Created 579 | 30 . 71 257 193 . 28 Parts 43 | 4 . 15 10 12 . 2 Haulers Intercepted 1 | . . . 1 . . . Recyclers Shooed 1 | . . . 1 . . . Parts Field Recycled . | . . . . . . . Retrieved Matter . | . . . . . . . Parts Self-Destructed . | . . . . . . . Prevented . | . . . . . . . Parts Restored . | . . . . . . . Kills | -11 -10 -10 -9 -9 -9 -8 ------- Run | Yrd Mat Min Mat Min Exi Min Combat Hostiles Destroyed 24 | . . 5 4 14 . 1 Guns 9 | . . 1 3 5 . . Cannons 3 | . . 2 1 . . . AOE 12 | . . 2 . 9 . 1 Classes Destroyed 10 | 1 . 1 4 4 . . Worker 1 | . . . . 1 . . Tunneler 2 | 1 . 1 . . . . Hauler 1 | . . . 1 . . . Recycler 1 | . . . 1 . . . Watcher 1 | . . . 1 . . . Swarmer 11 | . . 5 3 3 . . Grunt 3 | . . . . 2 . 1 Brawler 1 | . . . . 1 . . Sentry 1 | . . . 1 . . . Assembled 8 | . . . . 8 . . Best Kill Streak 8 | 1 . 2 3 8 . 1 Combat Bots Only 8 | . . 2 3 8 . 1 Max Kills in Single Turn 3 | 1 . 2 1 3 . 1 Gunslinging 1 | . . . . 1 . . Exploded 3 | . . 2 . 3 . 1 Melee . | . . . . . . . Uniques/NPCs Destroyed . | . . . . . . . Combat | -11 -10 -10 -9 -9 -9 -8 -------- Run | Yrd Mat Min Mat Min Exi Min Hostile Shots Fired 128 | . . 16 46 46 . 20 Missed 35 | . . 4 13 13 . 5 Hits 93 | . . 12 33 33 . 15 Melee 2 | . . . . 2 . . Projectile 91 | . . 12 33 31 . 15 AOE 10 | . . . . 10 . . Critical Strikes 2 | . . . 1 . . 1 Part Disruptions 1 | . . . . 1 . . Damage Taken 1763 | . . 113 371 791 . 488 Core 367 | . . 15 113 167 . 72 Absorbed by Shields . | . . . . . . . Core Remaining (%) 97 | 100 . 94 . . . . Volleys Fired 63 | 3 . 9 26 20 . 5 Largest 2 | 2 . 2 2 2 . 1 Hottest 91 | 70 . 53 91 79 . 33 Shots Fired 110 | 6 . 18 48 33 . 5 Gun 57 | 6 . 9 24 18 . . Cannon 38 | . . 8 24 6 . . Launcher 15 | . . 1 . 9 . 5 Special . | . . . . . . . Kinetic 68 | 3 . 17 30 18 . . Thermal 21 | 3 . . 18 . . . Explosive 15 | . . 1 . 9 . 5 Electromagnetic 6 | . . . . 6 . . Robot Hit Streak 14 | 2 . 5 14 6 . 7 Robot Miss Streak 4 | 2 . 3 4 1 . . Penetration Max . | . . . . . . . Secondary Targets 1 | . . . . 1 . . Max Gunslinging Chain 1 | . . . . 1 . . Shots Hit Robots 67 | 3 . 7 31 21 . 5 Core Hits 42 | 1 . 5 7 23 . 6 Critical Kills . | . . . . . . . Critical Parts Destroyed . | . . . . . . . Critical Strikes . | . . . . . . . Melee Attacks . | . . . . . . . Impact . | . . . . . . . Slashing . | . . . . . . . Piercing . | . . . . . . . Sneak Attacks . | . . . . . . . Combat Hostiles . | . . . . . . . Follow-up Attacks . | . . . . . . . Damage Inflicted 2214 | 38 . 225 553 1022 . 376 Guns 553 | 38 . 42 272 201 . . Cannons 452 | . . 70 281 101 . . Explosions 1209 | . . 113 . 720 . 376 Melee . | . . . . . . . Ramming . | . . . . . . . Kinetic 635 | 15 . 112 307 201 . . Thermal 269 | 23 . . 246 . . . Explosive 1209 | . . 113 . 720 . 376 Electromagnetic 101 | . . . . 101 . . Impact . | . . . . . . . Slashing . | . . . . . . . Piercing . | . . . . . . . Highest Corruption . | . . . . . . . Average Corruption . | . . . . . . . Corruption Purged . | . . . . . . . Corruption Blocked . | . . . . . . . Overload Shots . | . . . . . . . Overflow Damage 51 | . . 10 . 41 . . Projectiles 2 | . . 2 . . . . Explosions 49 | . . 8 . 41 . . Melee . | . . . . . . . Knockbacks 3 | . . 2 1 . . . Impact . | . . . . . . . Kinetic 3 | . . 2 1 . . . Secondary . | . . . . . . . Self-Inflicted Damage 379 | . . . 75 73 . 231 Shots 8 | . . . 1 2 . 5 Rammed . | . . . . . . . Targets Rammed . | . . . . . . . Kicked . | . . . . . . . Crushed . | . . . . . . . Highest Temperature 413 | 18 . . 413 63 . 48 Average Temperature 47 | 10 . . 63 23 . 26 Received Heat Transfer 328 | . . 27 78 70 . 153 Effects 1 | . . . 1 . . . Short Circuit 1 | . . . 1 . . . Siege Activations . | . . . . . . . Martial Activations . | . . . . . . . Shielding Activations . | . . . . . . . Robots Disrupted . | . . . . . . . Combat Hostiles . | . . . . . . . Robots Corrupted . | . . . . . . . Combat Hostiles . | . . . . . . . Parts Fried . | . . . . . . . Impact Corruptions . | . . . . . . . Robots Melted . | . . . . . . . Combat Hostiles . | . . . . . . . Parts Melted . | . . . . . . . Heat Transferred 506 | 62 . . 444 . . . Parts Sabotaged . | . . . . . . . Parts Stolen . | . . . . . . . Parts Stripped . | . . . . . . . Power Chain Reactions . | . . . . . . . Alert | -11 -10 -10 -9 -9 -9 -8 ------- Run | Yrd Mat Min Mat Min Exi Min Maximum Alert Level . | . . . . . . . Low Security (%) 100 | 100 100 100 100 100 . 100 Level 1 . | . . . . . . . Level 2 . | . . . . . . . Level 3 . | . . . . . . . Level 4 . | . . . . . . . Level 5 . | . . . . . . . High Security . | . . . . . . . Max Security . | . . . . . . . Peak Influence 156 | 5 12 72 156 96 . 110 Initial 24 | . . . 24 . . . Average 21 | 1 . 13 29 33 . 87 Influence Increases 773 | 5 17 165 210 266 . 110 Destroy 0b10 Robot/C 340 | . . 100 80 140 . 20 Destroy 0b10 Robot/NC 30 | 5 . 5 15 5 . . Destroy Leader 64 | . . 20 24 20 . . Allied During Kill 1 | . . . . 1 . . Successful Hack 30 | . 17 . 13 . . . Disable Machine 135 | . . . 45 . . 90 Destroy Structure 98 | . . 10 33 55 . . Lose Combat Pursuer 75 | . . 30 . 45 . . Influence Decreases 673 | 5 17 101 274 256 10 10 Entered New Map 50 | . . . 40 . 10 . Time Decay 583 | 5 17 101 224 236 . . Lost Part 40 | . . . 10 20 . 10 Squads Dispatched 1 | . . . 1 . . . Investigation 1 | . . . 1 . . . Extermination . | . . . . . . . Reinforcement . | . . . . . . . Assault . | . . . . . . . Garrison . | . . . . . . . Intercept . | . . . . . . . Searches Triggered . | . . . . . . . Construction Impeded . | . . . . . . . Haulers Reinforced . | . . . . . . . Active Scanning Responses . | . . . . . . . Cargo Convoy Interrupts . | . . . . . . . Stealth | -11 -10 -10 -9 -9 -9 -8 --------- Run | Yrd Mat Min Mat Min Exi Min Distress Signals 1 | . . . 1 . . . Communications Jammed . | . . . . . . . Distress Signals . | . . . . . . . Times Spotted 56 | . 2 8 16 27 . 3 Peak Tracking Total 18 | . 2 3 10 18 . 3 Tactical Retreats 6 | . . 2 . 4 . . Traps | -11 -10 -10 -9 -9 -9 -8 ------- Run | Yrd Mat Min Mat Min Exi Min Traps Triggered . | . . . . . . . Indirectly . | . . . . . . . Trap Hack Attempts . | . . . . . . . Triggered . | . . . . . . . Disarmed . | . . . . . . . Reprogrammed . | . . . . . . . Reused . | . . . . . . . Traps Extracted . | . . . . . . . Installed . | . . . . . . . Triggered . | . . . . . . . Machines | -11 -10 -10 -9 -9 -9 -8 ---------- Run | Yrd Mat Min Mat Min Exi Min Machines Disabled 9 | . . . 3 . . 6 Max in Single Turn 3 | . . . 3 . . 3 Machines Repaired . | . . . . . . . Machines Dismantled . | . . . . . . . Machines Sabotaged . | . . . . . . . Overloaded Fab Kills . | . . . . . . . Hacking | -11 -10 -10 -9 -9 -9 -8 --------- Run | Yrd Mat Min Mat Min Exi Min Machines Accessed 7 | . 2 . 4 . 1 . Terminals 5 | . 2 . 3 . . . Fabricators . | . . . . . . . Repair Stations . | . . . . . . . Recycling Units . | . . . . . . . Scanalyzers 1 | . . . 1 . . . Garrison Access . | . . . . . . . Total Hacks 18 | . 6 . 11 . 1 . Successful 8 | . 3 . 4 . 1 . Failed 10 | . 3 . 7 . . . Catastrophic . | . . . . . . . Database Lockouts . | . . . . . . . Manual 13 | . 4 . 8 . 1 . Terminals 14 | . 6 . 8 . . . Fabricators . | . . . . . . . Repair Stations . | . . . . . . . Recycling Units . | . . . . . . . Scanalyzers 3 | . . . 3 . . . Garrison Access . | . . . . . . . Terminal Hacks 3 | . 1 . 1 . 1 . Prototype ID Bank 1 | . 1 . . . . . Branch Access Points 1 | . . . 1 . . . Proto ID Catalog 1 | . . . . . 1 . Fabricator Hacks . | . . . . . . . Repair Station Hacks . | . . . . . . . Recycling Unit Hacks . | . . . . . . . Scanalyzer 2 | . . . 2 . . . Retrieve Study 2 | . . . 2 . . . Garrison Access Hacks . | . . . . . . . Unauthorized Hacks 3 | . 2 . 1 . . . Terminals 3 | . 2 . 1 . . . Botnet 3 | . 2 . 1 . . . Fabricators . | . . . . . . . Repair Stations . | . . . . . . . Recycling Units . | . . . . . . . Scanalyzers . | . . . . . . . Garrison Access . | . . . . . . . Data Cores Recovered . | . . . . . . . Used . | . . . . . . . Hacking Detections 5 | . 2 . 3 . . . Full Trace Events 2 | . 1 . 1 . . . Feedback Events . | . . . . . . . Feedback Blocked . | . . . . . . . Robot Schematics Acquired . | . . . . . . . Robots Built . | . . . . . . . Authchips . | . . . . . . . Time . | . . . . . . . Total Robot Build Rating . | . . . . . . . Part Schematics Acquired . | . . . . . . . Parts Built . | . . . . . . . Authchips . | . . . . . . . Time . | . . . . . . . Total Part Build Rating . | . . . . . . . Part Studies Acquired 2 | . . . 2 . . . Parts Repaired . | . . . . . . . Time . | . . . . . . . Parts Recycled . | . . . . . . . Recycled Matter . | . . . . . . . Retrieved Matter . | . . . . . . . Retrieved Components . | . . . . . . . Parts Scanalyzed . | . . . . . . . Part Schematics Acquired . | . . . . . . . Parts Damaged . | . . . . . . . Bothacking | -11 -10 -10 -9 -9 -9 -8 ------------ Run | Yrd Mat Min Mat Min Exi Min Used RIF Installer . | . . . . . . . Robots Hacked . | . . . . . . . Non-combat . | . . . . . . . Combat . | . . . . . . . Robot Hacks Applied . | . . . . . . . Relay Couplers Released . | . . . . . . . Fabnet Peak Effective % . | . . . . . . . Robots Rewired . | . . . . . . . Allies Hacked . | . . . . . . . Hacks Repelled . | . . . . . . . Allies | -11 -10 -10 -9 -9 -9 -8 -------- Run | Yrd Mat Min Mat Min Exi Min Total Allies 1 | . . . . 1 . . Largest Group 1 | . . . . 1 . . Highest-Rated Group 31 | . . . . 31 . . Highest-Rated Ally 31 | . . . . 31 . . Total Orders . | . . . . . . . Ally Attacks 8 | . . . . 8 . . Total Damage 127 | . . . . 127 . . Kills 4 | . . . . 4 . . Allies Corrupted . | . . . . . . . Allies Melted . | . . . . . . . Intel | -11 -10 -10 -9 -9 -9 -8 ------- Run | Yrd Mat Min Mat Min Exi Min Active Infowar (turns) 3091 | 24 514 523 869 744 400 17 Optics 1220 | . . . 59 744 400 17 Seismic 2601 | 24 514 523 869 671 . . Cloaking 17 | . . . . . 17 . Robot Analysis Total . | . . . . . . . Derelict Logs Recovered 2 | . . 1 . 1 . . Drone Launches . | . . . . . . . Drone Recoveries . | . . . . . . . Exploration | -11 -10 -10 -9 -9 -9 -8 ------------- Run | Yrd Mat Min Mat Min Exi Min Turns Passed 3121 | 54 514 523 869 744 400 17 Spaces Moved 1543 | 36 153 411 312 340 289 2 Core . | . . . . . . . Treads 373 | . . . 86 284 1 2 Legs 826 | 36 153 411 226 . . . Wheels 344 | . . . . 56 288 . Hover . | . . . . . . . Flight . | . . . . . . . Fastest Speed 120 | 120 120 120 120 130 130 320 Average Speed 145 | 120 120 120 151 199 130 320 Slowest Speed 320 | 120 120 120 240 240 240 320 Overloaded Moves . | . . . . . . . Propulsion Burnouts . | . . . . . . . Robots Hopped . | . . . . . . . Potential Cave-ins 2 | . . . . 2 . . Cave-ins Triggered . | . . . . . . . Exploration Rate (%) 39 | 3 22 74 34 65 68 11 Regions Visited 6 Branch Regions 4 Pre-discovered Areas . | . . . . . . . Known Exits Taken 1 | . . . 1 . . . Unknown Exits Taken 5 | 1 1 1 . 1 1 . Scrap Searched 2 | . . 1 . 1 . . Spaces Dug 36 | . . 14 . 22 . . Terrain Destroyed 145 | . . 14 31 100 . . Melee . | . . . . . . . Projectile . | . . . . . . . AOE 145 | . . 14 31 100 . . Terrain Rammed . | . . . . . . . Walls Destroyed . | . . . . . . . Machines Disabled . | . . . . . . . Actions | -11 -10 -10 -9 -9 -9 -8 --------- Run | Yrd Mat Min Mat Min Exi Min Total 2295 | 40 483 422 659 371 313 7 Wait 646 | . 330 . 309 2 5 . Move 1537 | 35 152 410 311 339 288 2 Hop . | . . . . . . . Pick Up 4 | . . 1 . 1 2 . Fast Attach 5 | 1 . . 3 . 1 . Attach 7 | . . . 2 3 2 . Detach 3 | . . . 2 . 1 . Swap 15 | 1 1 2 5 6 . . Drop 1 | . . . 1 . . . Fire 63 | 3 . 9 26 20 . 5 Melee . | . . . . . . . Ram . | . . . . . . . Kick . | . . . . . . . Crush . | . . . . . . . Escape Stasis . | . . . . . . . Rewire 14 | . . . . . 14 . Trap . | . . . . . . . Miscellaneous . | . . . . . . . Route ------- -11/Scrapyard -10/Materials -10/Mines (discovered 2 exits: *Mat x2) -9/Materials -9/Mines -9/Exiles (discovered 2 exits: [*Min x2]) -8/Mines History --------- Turn | Location | Event 1 | -11/Scrapyard | Discovered new exit (range 2) 55 | -11/Scrapyard | Entered Materials 66 | -10/Materials | Discovered new exit (range 15) 316 | -10/Materials | Build established: Mutant 569 | -10/Materials | Entered Mines 593 | -10/Mines | Learned Materials terminal intel 615 | -10/Mines | Received a Rocket Launcher from a helpful Derelict 786 | -10/Mines | Discovered new exit (range 7) 993 | -10/Mines | Discovered new exit (range 8) 1092 | -10/Mines | Entered Materials 1092 | -9/Materials | Evolved 2 slots: Utility x2 1093 | -9/Materials | Loaded intel: 12 terminal locations 1675 | -9/Materials | Identified exit to Mines 1961 | -9/Materials | Entered Mines 2001 | -9/Mines | Met a Derelict bent on vengeance 2042 | -9/Mines | Learned Materials interactive machine intel 2109 | -9/Mines | Received a Mining Laser from a helpful Derelict 2131 | -9/Mines | Assembled infested the area 2153 | -9/Mines | Met 8R-AWN 2167 | -9/Mines | Destroyed 8 combat bots 2369 | -9/Mines | Discovered new exit (range 5) 2621 | -9/Mines | Core integrity fell below 50% 2691 | -9/Mines | Lost 6 parts (2n1u3w) 2705 | -9/Mines | Entered Exiles 2722 | -9/Exiles | Discovered new exit (range 16) 2741 | -9/Exiles | Welcomed by 8R-AWN 2765 | -9/Exiles | Met EX-HEX 2818 | -9/Exiles | Met EX-BIN 2834 | -9/Exiles | Aligned with FarCom system 2835 | -9/Exiles | Given EX-Vault access code 2865 | -9/Exiles | Opened EX-Vault 2874 | -9/Exiles | Found Cloak of Protection 2913 | -9/Exiles | Warned to stay clear of 0b10 Research branches 2947 | -9/Exiles | Met EX-DEC 3088 | -9/Exiles | Discovered new exit (range 14) 3105 | -9/Exiles | Left Exiles lab with Cloak of Protection 3105 | -9/Exiles | Entered Mines 3118 | -8/Mines | Core integrity fell below 20% 3122 | -8/Mines | Self-destructed Last Messages --------------- EX-BIN: And don't even think about spreading that code around. We're gonna change it right after you leave. Most certainly not to something like 1234 which I did last time as a little joke and some thief managed to sneak in here and steal a few of HEX's prototypes. EX-DEC: Ah I see we have a visitor. One wrong move in here and I'll invert your atomic chain! 02949_ EX-DEC: "Oops, I hope HEX didn't hear that..." 02999_ Connecting with EX-Message Board... 03038_ Extracted 135 matter. 03039_ Acquired Hcp. Matter Pod. 03064_ Extracted 1 energy. 03065_ Acquired Lrg. Battery. 03088_ EXIT=FOUND LOCATION=UNKNOWN GOAL=ESCAPE 03105_ Receiving FarCom transmissions... 03105_ Imp. Treads destroyed. 03105_ Destroyed Imp. Treads. 03105_ Core Extractor disabled. 03109_ G-47 Trooper destroyed. 03109_ Core Extractor disabled. 03113_ Rocket Launcher destroyed. 03121_ Critical hit (Burn: +37). Map ----- +----------------------------------------------------+ | | | | | | | | | | | | | | | | | | | | | | | | | | | ?????????????????????????????????????????????????? | | ?????????????????????????????????????????????????? | | ?????????????????????????????????????????????????? | | ?????????????????????????????????????????????????? | | ????????????????###################??????????????? | | ????????????????# ?????????????? | | ????????????????# """ " "" """ ""?????????????? | | ????????????????# """ " """ """????????????? | | ????????????????# "" "" """ #??????????? | | ????????????????# #??????????? | | ????????????????# """ g "" ""?????????????? | | ????????????????# """ "" ""?????????????? | | ????????????????# """ @ """ ""?????????????? | | ????????????????# % g #??????????? | | ????????????????# """ " "" """ """ #??????????? | | ????????????????# """ """ """ """ """????????????? | | ????????????????# """ """ """ """ ""?????????????? | | ????????????????? ???????????????? | | ????????????????######### ### ####??????????????? | | ???????????????????????? ?? ?????????????????? | | ???????????????????????? ??? ????????????????? | | ????????????????????????#####??? ???????????????? | | ????????????????????????????????? ???????????????? | | ?????????????????????????????????????????????????? | | ?????????????????????????????????????????????????? | | ?????????????????????????????????????????????????? | | ?????????????????????????????????????????????????? | | ?????????????????????????????????????????????????? | | ?????????????????????????????????????????????????? | | ?????????????????????????????????????????????????? | | ?????????????????????????????????????????????????? | | ?????????????????????????????????????????????????? | | ?????????????????????????????????????????????????? | | ?????????????????????????????????????????????????? | | ?????????????????????????????????????????????????? | | ?????????????????????????????????????????????????? | | ?????????????????????????????????????????????????? | +----------------------------------------------------+ Best States ------------- Heat Dissipation 28 Energy Generation 12 Energy Capacity 265 Matter Stores 300 Matter Capacity 300 Sight Range 18 Terrain Scan Density 10 Cloak Strength 5 Evasion (%) 55 Recoil Reduction 2 Item Schematics ----------------- None Robot Schematics ------------------ None Fabricated ------------ Nothing Repaired ---------- Nothing Studied --------- Aluminum Leg | -9/Materials | Hacked Hvy. Assault Rifle | -9/Materials | Hacked Alien Tech Used ----------------- None Achievements -------------- None Challenges ------------ None Game ------ Seed ReflectiveShiftTerminator Manual? 0 Play Time 00:17:33 Cumulative 49.0 hours Start 2026.03.07 @ 21:26:44 End 2026.03.07 @ 22:07:39 Sessions 3 Manual Loads 0 Difficulty Rogue Special Mode None Game No. 72 Rogue 47 Adventurer 25 Explorer 0 Win Type - Total 0 Types 0/0/0/0/0/0/0/0/0/0 Lore% 34 Gallery% 36 Achievement% 29 Wizard Run 0 Options --------- Layout 0 ASCII 0 Keyboard 1 Movement Numpad Keybinds 0 Fullscreen 1 Font 24/Smallcaps Map View 183x50 Zoom Use 0% Tactical HUD 1 Map Filters NONE Filters NONE Steam 1 RUN: 3640e5f0-bf12-4c90-b517-dad6f499a812